fUST/lending_fUST_20240721
["ID","MTS","AMOUNT","RATE_DAILY","PERIOD"]
[332762757,1721507457247,-1082.87299349,0.00014246,2]
[332762758,1721507457261,-232.00700651,0.00014246,2]
[332762759,1721507457273,-239.44922165,0.00014246,2]
[332762760,1721507457304,-856.81,0.00013698,2]
[332762761,1721507457326,-1109.081745,0.00013698,2]
[332762762,1721507457794,-757.06655071,0.00013698,2]
[332762763,1721507457806,-7251.92170429,0.00013698,2]
[332762764,1721507457817,-9974.88,0.00013972,2]
[332762765,1721507458011,-995.90077835,0.00014246,2]
[332762766,1721507458021,-500.0,0.00014246,2]
[332762767,1721507458030,-944.37,0.00014246,2]
[332762768,1721507458040,-1593.99,0.00014246,2]
[332762769,1721507458049,-500.0,0.00014246,2]
[332762770,1721507458058,-500.0,0.00014246,2]
[332762771,1721507458068,-1289.95,0.00014246,2]
[332762772,1721507458077,-1524.61,0.00014246,2]
[332762773,1721507458086,-950.65,0.00014246,2]
[332762774,1721507458095,-982.46,0.00014246,2]
[332762775,1721507458105,-500.0,0.00014246,2]
[332762776,1721507458115,-9556.66,0.00014246,2]
[332762777,1721507458124,-11930.15661564,0.00014246,2]
[332762778,1721507458146,-9783.93043113,0.00014246,2]
[332762779,1721507458157,-11670.77295323,0.00014246,2]
[332762780,1721507458166,-1089.64,0.00014246,2]
[332762781,1721507458175,-500.0,0.00014246,2]
[332762782,1721507458184,-500.0,0.00014246,2]
[332762783,1721507458193,-1464.73,0.00014246,2]
[332762784,1721507458203,-774.09,0.00014246,2]
[332762785,1721507458212,-922.08,0.00014246,2]
[332762786,1721507458221,-1588.67,0.00014246,2]
[332762787,1721507458230,-500.0,0.00014246,2]
[332762788,1721507458239,-500.0,0.00014246,2]
[332762789,1721507458248,-848.62,0.00014246,2]
[332762790,1721507458258,-510.81,0.00014246,2]
[332762791,1721507458267,-415.26668233,0.00014246,2]
[332762792,1721507458277,-2131.14,0.00014246,2]
[332762793,1721507458287,-500.0,0.00014246,2]
[332762794,1721507458296,-500.0,0.00014246,2]
[332762795,1721507458305,-500.0,0.00014246,2]
[332762796,1721507458314,-500.0,0.00014246,2]
[332762797,1721507458323,-2374.54,0.00014246,2]
[332762798,1721507458333,-500.0,0.00014246,2]
[332762799,1721507458342,-3023.06,0.00014246,2]
[332762800,1721507458351,-742.6,0.00014246,2]
[332762801,1721507458361,-500.0,0.00014246,2]
[332762802,1721507458371,-307.19556289,0.00014246,2]
[332762803,1721507458380,-500.0,0.00014246,2]
[332762804,1721507458389,-1361.91,0.00014246,2]
[332762805,1721507458399,-500.0,0.00014246,2]
[332762806,1721507458408,-1323.32,0.00014246,2]
[332762807,1721507458418,-500.0,0.00014246,2]
[332762808,1721507458427,-500.0,0.00014246,2]
[332762809,1721507458436,-500.0,0.00014246,2]
[332762810,1721507458445,-2248.5,0.00014246,2]
[332762811,1721507458454,-500.0,0.00014246,2]
[332762812,1721507458463,-2439.5,0.00014246,2]
[332762813,1721507458473,-1273.27,0.00014246,2]
[332762814,1721507458482,-500.0,0.00014246,2]
[332762815,1721507458492,-14274.59,0.00014246,2]
[332762816,1721507458501,-500.0,0.00014246,2]
[332762817,1721507458511,-500.0,0.00014246,2]
[332762818,1721507458520,-500.0,0.00014246,2]
[332762819,1721507458529,-500.0,0.00014246,2]
[332762820,1721507458538,-585.29,0.00014246,2]
[332762821,1721507458548,-525.3,0.00014246,2]
[332762822,1721507458557,-9974.88,0.00014246,2]
[332762823,1721507458566,-643.03125,0.00014247,2]
[332762824,1721507458575,-164.567307,0.00014247,2]
[332762825,1721507458584,-306.0,0.00014247,2]
[332762826,1721507458593,-2106.82215836,0.00014268,2]
[332762827,1721507458603,-628.09916781,0.00014456,2]
[332762828,1721507458612,-6358.01432522,0.0001452,5]
[332762829,1721507458621,-500.0,0.0001452,2]
[332762830,1721507458631,-504.399664,0.0001452,2]
[332762831,1721507458640,-812.17,0.0001452,2]
[332762832,1721507458649,-500.0,0.0001452,2]
[332762833,1721507458659,-500.0,0.0001452,2]
[332762834,1721507458668,-933.32,0.0001452,2]
[332762835,1721507458677,-500.0,0.0001452,2]
[332762836,1721507458686,-778.5,0.0001452,2]
[332762837,1721507458696,-500.0,0.0001452,2]
[332762838,1721507458705,-1043.63,0.0001452,2]
[332762839,1721507458714,-500.0,0.0001452,2]
[332762840,1721507458723,-500.0,0.0001452,2]
[332762841,1721507458732,-500.0,0.0001452,2]
[332762842,1721507458742,-579.52,0.0001452,2]
[332762843,1721507458751,-669.97,0.0001452,2]
[332762844,1721507458761,-500.0,0.0001452,2]
[332762845,1721507458771,-500.0,0.0001452,2]
[332762846,1721507458780,-500.0,0.0001452,2]
[332762847,1721507458790,-500.0,0.0001452,2]
[332762848,1721507458799,-500.0,0.0001452,2]
[332762849,1721507458808,-526.28,0.0001452,2]
[332762850,1721507458817,-500.0,0.0001452,2]
[332762851,1721507458827,-500.0,0.0001452,2]
[332762852,1721507458836,-1010.99,0.0001452,2]
[332762853,1721507458846,-500.0,0.0001452,2]
[332762854,1721507458855,-500.0,0.0001452,2]
[332762855,1721507458864,-500.0,0.0001452,2]
[332762856,1721507458874,-940.75,0.0001452,2]
[332762857,1721507458883,-500.0,0.0001452,2]
[332762858,1721507458893,-500.0,0.0001452,2]
[332762859,1721507458902,-500.0,0.0001452,2]
[332762860,1721507458911,-513.99920471,0.0001452,2]
[332762861,1721507458920,-659.36,0.0001452,2]
[332762862,1721507458929,-500.0,0.0001452,2]
[332762863,1721507458939,-500.0,0.0001452,2]
[332762864,1721507458948,-598.5,0.0001452,2]
[332762865,1721507458958,-500.0,0.0001452,2]
[332762866,1721507458967,-500.0,0.0001452,2]
[332762867,1721507458976,-500.0,0.0001452,2]
[332762868,1721507458986,-500.0,0.0001452,2]
[332762869,1721507458995,-500.0,0.0001452,2]
[332762870,1721507459004,-500.0,0.0001452,2]
[332762871,1721507459016,-500.0,0.0001452,2]
[332762872,1721507459028,-500.0,0.0001452,2]
[332762873,1721507459039,-942.25,0.0001452,2]
[332762874,1721507459049,-500.0,0.0001452,2]
[332762875,1721507459059,-500.0,0.0001452,2]
[332762876,1721507459071,-150.0,0.0001452,2]
[332762877,1721507459081,-500.0,0.0001452,2]
[332762878,1721507459090,-500.0,0.0001452,2]
[332762879,1721507459100,-500.0,0.0001452,2]
[332762880,1721507459109,-507.62,0.0001452,2]
[332762881,1721507459119,-637.53893582,0.0001452,2]
[332762882,1721507459129,-673.62,0.0001452,2]
[332762883,1721507459138,-503.98,0.0001452,2]
[332762884,1721507459148,-500.0,0.0001452,2]
[332762885,1721507459157,-500.0,0.0001452,2]
[332762886,1721507459166,-2207.67,0.0001452,2]
[332762887,1721507459176,-500.0,0.0001452,2]
[332762888,1721507459185,-663.18,0.0001452,2]
[332762889,1721507459195,-500.0,0.0001452,2]
[332762890,1721507459204,-616.11,0.0001452,2]
[332762891,1721507459213,-500.0,0.0001452,2]
[332762892,1721507459222,-500.0,0.0001452,2]
[332762893,1721507459231,-500.0,0.0001452,2]
[332762894,1721507459241,-610.06,0.0001452,2]
[332762895,1721507459250,-508.54564734,0.0001452,2]
[332762896,1721507459260,-500.0,0.0001452,2]
[332762897,1721507459270,-500.0,0.0001452,2]
[332762898,1721507459281,-500.0,0.0001452,2]
[332762899,1721507459291,-500.0,0.0001452,2]
[332762900,1721507459301,-683.83,0.0001452,2]
[332762901,1721507459311,-500.0,0.0001452,2]
[332762902,1721507459320,-500.0,0.0001452,2]
[332762903,1721507459330,-782.62,0.0001452,2]
[332762904,1721507459340,-517.33,0.0001452,2]
[332762905,1721507459349,-3151.21,0.0001452,2]
[332762906,1721507459359,-500.0,0.0001452,2]
[332762907,1721507459369,-500.0,0.0001452,2]
[332762908,1721507459379,-840.58,0.0001452,2]
[332762909,1721507459388,-500.0,0.0001452,2]
[332762910,1721507459398,-500.0,0.0001452,2]
[332762911,1721507459408,-1631.65,0.0001452,2]
[332762912,1721507459417,-626.98,0.0001452,2]
[332762913,1721507459427,-966.95,0.0001452,2]
[332762914,1721507459437,-500.0,0.0001452,2]
[332762915,1721507459447,-500.0,0.0001452,2]
[332762916,1721507459456,-781.68,0.0001452,2]
[332762917,1721507459466,-2254.27,0.0001452,2]
[332762918,1721507459475,-500.0,0.0001452,2]
[332762919,1721507459484,-2931.06,0.0001452,2]
[332762920,1721507459494,-582.80298837,0.0001452,2]
[332762921,1721507459504,-232.95849691,0.0001452,2]
[332762922,1721507459514,-617.77,0.0001452,2]
[332762923,1721507459525,-653.01,0.0001452,2]
[332762924,1721507459535,-500.0,0.0001452,2]
[332762925,1721507459546,-1121.97,0.0001452,2]
[332762926,1721507459556,-503.55041733,0.0001452,2]
[332762927,1721507459568,-2062.41,0.0001452,2]
[332762928,1721507459578,-696.35,0.0001452,2]
[332762929,1721507459587,-500.0,0.0001452,2]
[332762930,1721507459596,-500.0,0.0001452,2]
[332762931,1721507459608,-500.0,0.0001452,2]
[332762932,1721507459617,-1163.39,0.0001452,2]
[332762933,1721507459627,-500.0,0.0001452,2]
[332762934,1721507459637,-500.0,0.0001452,2]
[332762935,1721507459646,-500.0,0.0001452,2]
[332762936,1721507459655,-423.73046473,0.0001452,2]
[332762937,1721507459665,-324.77928867,0.0001452,2]
[332762938,1721507459675,-1152.29,0.0001452,2]
[332762939,1721507459685,-500.0,0.0001452,2]
[332762940,1721507459694,-500.0,0.0001452,2]
[332762941,1721507459704,-1160.73,0.0001452,2]
[332762942,1721507459715,-500.0,0.0001452,2]
[332762943,1721507459726,-722.0,0.0001452,2]
[332762944,1721507459737,-500.0,0.0001452,2]
[332762945,1721507459749,-4128.71,0.0001452,2]
[332762946,1721507459761,-568.79,0.0001452,2]
[332762947,1721507459771,-500.0,0.0001452,2]
[332762948,1721507459781,-500.0,0.0001452,2]
[332762949,1721507459791,-500.0,0.0001452,2]
[332762950,1721507459799,-1470.23,0.0001452,2]
[332762951,1721507459809,-698.52,0.0001452,2]
[332762952,1721507459818,-500.0,0.0001452,2]
[332762953,1721507459830,-500.0,0.0001452,2]
[332762954,1721507459840,-500.0,0.0001452,2]
[332762955,1721507459850,-500.0,0.0001452,2]
[332762956,1721507459861,-571.92256385,0.0001452,2]
[332762957,1721507459871,-500.0,0.0001452,2]
[332762958,1721507459881,-594.58,0.0001452,2]
[332762959,1721507459891,-1951.53,0.0001452,2]
[332762960,1721507459901,-612.79,0.0001452,2]
[332762961,1721507459911,-874.33,0.0001452,2]
[332762962,1721507459922,-500.0,0.0001452,2]
[332762963,1721507459932,-500.0,0.0001452,2]
[332762964,1721507459943,-555.88,0.0001452,2]
[332762965,1721507459955,-632.84,0.0001452,2]
[332762966,1721507459964,-500.0,0.0001452,2]
[332762967,1721507459974,-500.0,0.0001452,2]
[332762968,1721507459985,-604.8,0.0001452,2]
[332762969,1721507459997,-500.0,0.0001452,2]
[332762970,1721507460007,-500.0,0.0001452,2]
[332762971,1721507460016,-500.0,0.0001452,2]
[332762972,1721507460025,-1853.19,0.0001452,2]
[332762973,1721507460033,-500.0,0.0001452,2]
[332762974,1721507460042,-500.0,0.0001452,2]
[332762975,1721507460052,-500.0,0.0001452,2]
[332762976,1721507460062,-1845.627948,0.0001452,2]
[332762977,1721507460071,-500.0,0.0001452,2]
[332762978,1721507460082,-1845.627948,0.0001452,2]
[332762979,1721507460091,-568.79,0.0001452,2]
[332762980,1721507460100,-315.09393361,0.0001452,2]
[332762981,1721507460110,-774.02,0.0001452,2]
[332762982,1721507460122,-500.0,0.0001452,2]
[332762983,1721507460131,-500.0,0.0001452,2]
[332762984,1721507460142,-800.39,0.0001452,2]
[332762985,1721507460151,-500.0,0.0001452,2]
[332762986,1721507460160,-151.0,0.0001452,2]
[332762987,1721507460170,-1327.2,0.0001452,2]
[332762988,1721507460179,-151.0,0.0001452,2]
[332762989,1721507460189,-902.78,0.0001452,2]
[332762990,1721507460198,-918.39,0.0001452,2]
[332762991,1721507460207,-500.0,0.0001452,2]
[332762992,1721507460216,-846.58,0.0001452,2]
[332762993,1721507460227,-533.42,0.0001452,2]
[332762994,1721507460238,-500.0,0.0001452,2]
[332762995,1721507460248,-500.0,0.0001452,2]
[332762996,1721507460258,-983.38,0.0001452,2]
[332762997,1721507460267,-2661.93,0.0001452,2]
[332762998,1721507460278,-504.22135143,0.0001452,2]
[332762999,1721507460290,-1796.13,0.0001452,2]
[332763000,1721507460299,-1825.24,0.0001452,2]
[332763001,1721507460309,-500.0,0.0001452,2]
[332763002,1721507460318,-371.21872969,0.0001452,2]
[332763003,1721507460328,-2146.19,0.0001452,2]
[332763004,1721507460337,-500.0,0.0001452,2]
[332763005,1721507460347,-500.0,0.0001452,2]
[332763006,1721507460357,-500.0,0.0001452,2]
[332763007,1721507460369,-500.0,0.0001452,2]
[332763008,1721507460378,-500.0,0.0001452,2]
[332763009,1721507460388,-500.0,0.0001452,2]
[332763010,1721507460398,-500.0,0.0001452,2]
[332763011,1721507460407,-413.12462738,0.0001452,2]
[332763012,1721507460416,-2189.06,0.0001452,2]
[332763013,1721507460426,-500.0,0.0001452,2]
[332763014,1721507460435,-500.0,0.0001452,2]
[332763015,1721507460445,-575.38,0.0001452,2]
[332763016,1721507460455,-500.0,0.0001452,2]
[332763017,1721507460464,-500.0,0.0001452,2]
[332763018,1721507460473,-2105.24,0.0001452,2]
[332763019,1721507460483,-724.24,0.0001452,2]
[332763020,1721507460492,-500.0,0.0001452,2]
[332763021,1721507460501,-500.0,0.0001452,2]
[332763022,1721507460511,-500.0,0.0001452,2]
[332763023,1721507460521,-500.0,0.0001452,2]
[332763024,1721507460531,-500.0,0.0001452,2]
[332763025,1721507460541,-583.13,0.0001452,2]
[332763026,1721507460551,-963.1,0.0001452,2]
[332763027,1721507460560,-500.0,0.0001452,2]
[332763028,1721507460570,-500.0,0.0001452,2]
[332763029,1721507460580,-528.05,0.0001452,2]
[332763030,1721507460590,-500.0,0.0001452,2]
[332763031,1721507460599,-776.96,0.0001452,2]
[332763032,1721507460610,-1350.44,0.0001452,2]
[332763033,1721507460619,-500.0,0.0001452,2]
[332763034,1721507460628,-520.8514786,0.0001452,2]
[332763035,1721507460638,-806.85,0.0001452,2]
[332763036,1721507460648,-499.99859316,0.0001452,2]
[332763037,1721507460657,-1833.59,0.0001452,2]
[332763038,1721507460666,-1111.94,0.0001452,2]
[332763039,1721507460676,-3866.05,0.0001452,2]
[332763040,1721507460685,-519.99834268,0.0001452,2]
[332763041,1721507460694,-500.0,0.0001452,2]
[332763042,1721507460703,-720.16,0.0001452,2]
[332763043,1721507460713,-1045.95,0.0001452,2]
[332763044,1721507460723,-2426.91,0.0001452,2]
[332763045,1721507460732,-500.0,0.0001452,2]
[332763046,1721507460742,-500.0,0.0001452,2]
[332763047,1721507460751,-1586.84,0.0001452,2]
[332763048,1721507460761,-500.0,0.0001452,2]
[332763049,1721507460770,-600.22657191,0.0001452,2]
[332763050,1721507460779,-653.69,0.0001452,2]
[332763051,1721507460788,-889.11,0.0001452,2]
[332763052,1721507460797,-2116.62,0.0001452,2]
[332763053,1721507460806,-3632.24,0.0001452,2]
[332763054,1721507460814,-1237.75,0.0001452,2]
[332763055,1721507460823,-4757.55,0.0001452,2]
[332763056,1721507460833,-500.0,0.0001452,2]
[332763057,1721507460843,-622.39,0.0001452,2]
[332763058,1721507460854,-2898.13,0.0001452,2]
[332763059,1721507460865,-782.62,0.0001452,2]
[332763060,1721507460875,-2959.65,0.0001452,2]
[332763061,1721507460885,-500.0,0.0001452,2]
[332763062,1721507460896,-500.0,0.0001452,2]
[332763063,1721507460906,-500.0,0.0001452,2]
[332763064,1721507460915,-762.0,0.0001452,2]
[332763065,1721507460927,-2539.74,0.0001452,2]
[332763066,1721507460936,-620.28,0.0001452,2]
[332763067,1721507460946,-558.88,0.0001452,2]
[332763068,1721507460958,-3610.2,0.0001452,2]
[332763069,1721507460969,-653.11,0.0001452,2]
[332763070,1721507460978,-500.0,0.0001452,2]
[332763071,1721507460988,-922.66,0.0001452,2]
[332763072,1721507460999,-237.48528334,0.0001452,2]
[332763073,1721507461009,-500.0,0.0001452,2]
[332763074,1721507461019,-9525.09,0.0001452,2]
[332763075,1721507461030,-1636.19,0.0001452,2]
[332763076,1721507461040,-500.0,0.0001452,2]
[332763077,1721507461049,-2521.08,0.0001452,2]
[332763078,1721507461061,-5492.89,0.0001452,2]
[332763079,1721507461070,-668.41,0.0001452,2]
[332763080,1721507461079,-2936.55,0.0001452,2]
[332763081,1721507461089,-1876.24,0.0001452,2]
[332763082,1721507461098,-688.02,0.0001452,2]
[332763083,1721507461108,-1164.01,0.0001452,2]
[332763084,1721507461117,-500.0,0.0001452,2]
[332763085,1721507461126,-500.0,0.0001452,2]
[332763086,1721507461136,-500.0,0.0001452,2]
[332763087,1721507461145,-500.0,0.0001452,2]
[332763088,1721507461155,-597.65,0.0001452,2]
[332763089,1721507461164,-500.0,0.0001452,2]
[332763090,1721507461174,-500.0,0.0001452,2]
[332763091,1721507461183,-615.32,0.0001452,2]
[332763092,1721507461193,-680.97,0.0001452,2]
[332763093,1721507461202,-5204.55,0.0001452,2]
[332763094,1721507461212,-254.08393056,0.0001452,2]
[332763095,1721507461223,-540.92680872,0.0001452,2]
[332763096,1721507461234,-534.36,0.0001452,2]
[332763097,1721507461246,-500.0,0.0001452,2]
[332763098,1721507461257,-223.085694,0.0001452,2]
[332763099,1721507461267,-223.085694,0.0001452,2]
[332763100,1721507461278,-18390.94,0.0001452,2]
[332763101,1721507461289,-500.0,0.0001452,2]
[332763102,1721507461299,-500.0,0.0001452,2]
[332763103,1721507461310,-3826.08,0.0001452,2]
[332763104,1721507461319,-993.33,0.0001452,2]
[332763105,1721507461329,-694.69,0.0001452,2]
[332763106,1721507461340,-500.0,0.0001452,2]
[332763107,1721507461349,-500.0,0.0001452,2]
[332763108,1721507461361,-2030.73,0.0001452,2]
[332763109,1721507461372,-500.0,0.0001452,2]
[332763110,1721507461382,-650.96,0.0001452,2]
[332763111,1721507461391,-2230.68,0.0001452,2]
[332763112,1721507461401,-1066.37,0.0001452,2]
[332763113,1721507461413,-3050.09,0.0001452,2]
[332763114,1721507461423,-500.0,0.0001452,2]
[332763115,1721507461432,-500.0,0.0001452,2]
[332763116,1721507461442,-11096.32,0.0001452,2]
[332763117,1721507461452,-500.0,0.0001452,2]
[332763118,1721507461463,-732.38,0.0001452,2]
[332763119,1721507461473,-4979.9,0.0001452,2]
[332763120,1721507461483,-606.15,0.0001452,2]
[332763121,1721507461492,-500.0,0.0001452,2]
[332763122,1721507461503,-500.0,0.0001452,2]
[332763123,1721507461514,-500.0,0.0001452,2]
[332763124,1721507461523,-1373.89,0.0001452,2]
[332763125,1721507461532,-2679.12,0.0001452,2]
[332763126,1721507461542,-4593.9,0.0001452,2]
[332763127,1721507461553,-500.0,0.0001452,2]
[332763128,1721507461564,-3152.44,0.0001452,2]
[332763129,1721507461573,-2055.25,0.0001452,2]
[332763130,1721507461582,-500.0,0.0001452,2]
[332763131,1721507461591,-500.0,0.0001452,2]
[332763132,1721507461601,-1077.09,0.0001452,2]
[332763133,1721507461611,-615.57,0.0001452,2]
[332763134,1721507461620,-500.0,0.0001452,2]
[332763135,1721507461630,-653.33,0.0001452,2]
[332763136,1721507461639,-500.0,0.0001452,2]
[332763137,1721507461649,-1961.3,0.0001452,2]
[332763138,1721507461658,-1149.23,0.0001452,2]
[332763139,1721507461667,-588.32,0.0001452,2]
[332763140,1721507461676,-500.0,0.0001452,2]
[332763141,1721507461685,-523.71,0.0001452,2]
[332763142,1721507461695,-1717.99,0.0001452,2]
[332763143,1721507461704,-611.84,0.0001452,2]
[332763144,1721507461714,-1361.98,0.0001452,2]
[332763145,1721507461725,-500.0,0.0001452,2]
[332763146,1721507461735,-2600.56,0.0001452,2]
[332763147,1721507461744,-3138.15,0.0001452,2]
[332763148,1721507461753,-1456.198574,0.0001452,2]
[332763149,1721507461762,-500.0,0.0001452,2]
[332763150,1721507461771,-1486.97,0.0001452,2]
[332763151,1721507461780,-2758.06,0.0001452,2]
[332763152,1721507461789,-500.0,0.0001452,2]
[332763153,1721507461798,-500.0,0.0001452,2]
[332763154,1721507461808,-1456.198574,0.0001452,2]
[332763155,1721507461817,-1314.88,0.0001452,2]
[332763156,1721507461826,-1235.35,0.0001452,2]
[332763157,1721507461835,-500.0,0.0001452,2]
[332763158,1721507461845,-944.37,0.0001452,2]
[332763159,1721507461854,-1593.99,0.0001452,2]
[332763160,1721507461867,-500.0,0.0001452,2]
[332763161,1721507461877,-1289.95,0.0001452,2]
[332763162,1721507461886,-1524.61,0.0001452,2]
[332763163,1721507461896,-950.65,0.0001452,2]
[332763164,1721507461906,-982.46,0.0001452,2]
[332763165,1721507461915,-9556.66,0.0001452,2]
[332763166,1721507461928,-500.0,0.0001452,2]
[332763167,1721507461938,-33384.86,0.0001452,2]
[332763168,1721507461949,-1089.64,0.0001452,2]
[332763169,1721507462120,-500.0,0.0001452,2]
[332763170,1721507462130,-167.06049577,0.0001452,2]
[332763171,1721507462141,-1464.73,0.0001452,2]
[332763172,1721507462151,-774.09,0.0001452,2]
[332763173,1721507462162,-922.08,0.0001452,2]
[332763174,1721507462173,-1588.67,0.0001452,2]
[332763175,1721507462182,-500.0,0.0001452,2]
[332763176,1721507462193,-848.62,0.0001452,2]
[332763177,1721507462204,-510.81,0.0001452,2]
[332763178,1721507462214,-2131.14,0.0001452,2]
[332763179,1721507462224,-500.0,0.0001452,2]
[332763180,1721507462234,-500.0,0.0001452,2]
[332763181,1721507462244,-500.0,0.0001452,2]
[332763182,1721507462254,-500.0,0.0001452,2]
[332763183,1721507462263,-2374.54,0.0001452,2]
[332763184,1721507462274,-500.0,0.0001452,2]
[332763185,1721507462289,-3023.06,0.0001452,2]
[332763186,1721507462298,-742.6,0.0001452,2]
[332763187,1721507462308,-500.0,0.0001452,2]
[332763188,1721507462318,-500.0,0.0001452,2]
[332763189,1721507462330,-500.0,0.0001452,2]
[332763190,1721507462339,-1361.91,0.0001452,2]
[332763191,1721507462349,-1323.32,0.0001452,2]
[332763192,1721507462359,-500.0,0.0001452,2]
[332763193,1721507462369,-500.0,0.0001452,2]
[332763194,1721507462379,-500.0,0.0001452,2]
[332763195,1721507462388,-2248.5,0.0001452,2]
[332763196,1721507462397,-500.0,0.0001452,2]
[332763197,1721507462407,-2439.5,0.0001452,2]
[332763198,1721507462417,-1273.27,0.0001452,2]
[332763199,1721507462427,-391.90915622,0.0001452,2]
[332763200,1721507462436,-14274.59,0.0001452,2]
[332763201,1721507462446,-500.0,0.0001452,2]
[332763202,1721507462455,-500.0,0.0001452,2]
[332763203,1721507462464,-500.0,0.0001452,2]
[332763204,1721507462474,-585.29,0.0001452,2]
[332763205,1721507462483,-525.3,0.0001452,2]
[332763206,1721507462492,-823.0,0.0001458,2]
[332763207,1721507462501,-5303.4494987,0.00014656,2]
[332763208,1721507462511,-150.0,0.00014701,2]
[332763209,1721507462520,-504.0,0.00014701,2]
[332763210,1721507462529,-1408.0,0.00014701,2]
[332763211,1721507462538,-360.08491037,0.00014714,2]
[332763212,1721507462548,-500.0,0.00014794,2]
[332763213,1721507462557,-812.17,0.00014794,2]
[332763214,1721507462566,-500.0,0.00014794,2]
[332763215,1721507462576,-933.32,0.00014794,2]
[332763216,1721507462586,-500.0,0.00014794,2]
[332763217,1721507462595,-778.5,0.00014794,2]
[332763218,1721507462605,-500.0,0.00014794,2]
[332763219,1721507462617,-1043.63,0.00014794,2]
[332763220,1721507462627,-500.0,0.00014794,2]
[332763221,1721507462636,-500.0,0.00014794,2]
[332763222,1721507462648,-579.52,0.00014794,2]
[332763223,1721507462657,-669.97,0.00014794,2]
[332763224,1721507462666,-500.0,0.00014794,2]
[332763225,1721507462676,-500.0,0.00014794,2]
[332763226,1721507462685,-500.0,0.00014794,2]
[332763227,1721507462694,-500.0,0.00014794,2]
[332763228,1721507462704,-554.63644339,0.00014794,2]
[332763229,1721507462713,-526.28,0.00014794,2]
[332763230,1721507462723,-526.46111205,0.00014794,2]
[332763231,1721507462733,-500.0,0.00014794,2]
[332763232,1721507462743,-1010.99,0.00014794,2]
[332763233,1721507462753,-500.0,0.00014794,2]
[332763234,1721507462762,-500.0,0.00014794,2]
[332763235,1721507462771,-500.0,0.00014794,2]
[332763236,1721507462781,-940.75,0.00014794,2]
[332763237,1721507462791,-500.0,0.00014794,2]
[332763238,1721507462800,-659.36,0.00014794,2]
[332763239,1721507462810,-500.0,0.00014794,2]
[332763240,1721507462820,-500.0,0.00014794,2]
[332763241,1721507462829,-598.5,0.00014794,2]
[332763242,1721507462839,-500.0,0.00014794,2]
[332763243,1721507462849,-500.0,0.00014794,2]
[332763244,1721507462860,-500.0,0.00014794,2]
[332763245,1721507462871,-500.0,0.00014794,2]
[332763246,1721507462881,-500.0,0.00014794,2]
[332763247,1721507462890,-500.0,0.00014794,2]
[332763248,1721507462900,-500.0,0.00014794,2]
[332763249,1721507462909,-500.0,0.00014794,2]
[332763250,1721507462920,-942.25,0.00014794,2]
[332763251,1721507462930,-500.0,0.00014794,2]
[332763252,1721507462939,-500.0,0.00014794,2]
[332763253,1721507462949,-182.99629275,0.00014794,2]
[332763254,1721507462959,-500.0,0.00014794,2]
[332763255,1721507462968,-500.0,0.00014794,2]
[332763256,1721507462979,-554.1,0.00014794,2]